{"text_format":"1","workbook":"xlsx","n_sheets":1,"sheets":["正式"],"not_rendered":{"charts":0,"images":10,"macros":0,"external_links":0,"defined_names":0,"comments":0,"pivot_tables":0},"unopened":[],"bounds":{"document_bytes":16777216,"sheet_cells":100000,"rows_first":2000,"rows_last":500,"rows_between":2000,"halvings":0,"cell_chars":16384,"cell_head_chars":4096},"cells_cut":0,"cells_raw":0,"read":"whole","date_system":"1900"}

{"sheet":"正式","index":0,"n_rows":16,"n_cols":12,"rows_kept":16,"cut":false,"hidden":false,"merged":[[0,0,0,7],[14,0,14,1],[14,2,14,4],[14,5,14,7],[15,1,15,7]]}
["叶城县第六小学采购课桌椅及教学设备（用品）清单"]
["序号","物品名称","规格型号","单位","数量","单价","金额","备注"]
[{"$f":"ROW()-2","v":1},"单人课桌椅（适用于学生午休，午睡椅可躺）","可趟升降桌椅规格：长980*宽600*高760-120mm （可手摇升降调节）\n课桌：长600*宽400*高760-120mm（可手摇升降调节）\n桌面板采用600*400*18mm密度板注塑封边\n桌斗规格；宽470*深300*高150mm铁斗一次成型\n课桌底下前部设置封边躺板。\n课椅：宽470*深240*高400-500mm（可手摇升降调节）\n靠背离地面总高94cm，座板及靠背采用多层材质+原生海绵及精选棉麻布料包裹，使学生使用更加舒适亲肤。\n管材：\n1、主体桌、椅脚架立柱外管采用34*64*1.2mm厚扁圆管\n2、主体桌、椅脚架立柱内管采用25*55*1.2mm厚扁圆管\n3、主体桌，椅脚架底管采用30*60*1.2mm厚扁圆管。\n产品桌椅一体，课桌椅符合国家标准，将桌下前置躺板放下，椅背向后调整，可转换成午休床使用。","套",100,null,{"$f":"F3*E3","v":0}]
[{"$f":"ROW()-2","v":2},"纳米智慧黑板","后附参数（到学校领取）","套",2,null,{"$f":"F4*E4","v":0},"主材、调试，包安装"]
[{"$f":"ROW()-2","v":3},"阅览室书架  ","150x30×93cm-胡桃木","个",4,null,{"$f":"F5*E5","v":0},"参考所附的图片"]
[{"$f":"ROW()-2","v":4},"手推车"," 车箱式1.2x1x0.25米","台",2,null,{"$f":"F6*E6","v":0},"可以定制",1,2,3,4]
[{"$f":"ROW()-2","v":5},"书法练习套盒","纸20刀，毛笔架10 套，毛笔一套3只的200套，墨汁100盒 100克","套",50,null,{"$f":"F7*E7","v":0},"看右边的四个链接","https://item.m.jd.com/product/5273005.html?utm_campaign=t_1001328990","https://item.m.jd.com/product/4681980.html?utm_campaign=t_1001328990","https://item.m.jd.com/product/55144932391.html?utm_campaign=t_1001328990","https://item.m.jd.com/product/100005990319.html?utm_campaign=t_1001328990"]
[6,"脸谱 ","7种压痕京剧脸谱（带2份涂色颜料+2盘子）","套",50,null,0,"参考所附的图片"]
[7,"刀马旦儿童演出服戏服，京剧，豫剧","天蓝色身高1.2米至1.5米 ","套",15,null,0,"参考所附的图片衣服的款式，套装等按校领导的要求供货"]
[8,"快板","（儿童快板5片竹子响板xs6001 中号儿童红色）","套",60,null,0,"参考所附的图片"]
[9,"弟子规道具","竹简书卷儿童表演道具，高15.8*长24CM(加固编织成册20片)","套",60,null,0,"参考所附的图片"]
[10,"消防水管软管卷盘","国标（包括软管）","套",2,null,0,"包安装"]
[{"$f":"ROW()-2","v":11},"手电筒","乔裕QY-5551；自带充电器","个",3,null,{"$f":"F13*E13","v":0}]
[{"$f":"ROW()-2","v":12},"电线","1、纯铜，6平方米，共300米。\n2、校园广播连接到音柱音箱的专用线，共300米。","米",600,null,{"$f":"F14*E14","v":0},"包安装（学校指定的地方）"]
["合计（大写）：",null,{"$f":"CONCATENATE(\"\",IF(F15=0,\"\",IF(ABS(F15)<0.995,\"\",TEXT(INT(ROUND(ABS(F15),2)),\"[DBNum2]\")&\"元\")&IF(RIGHT(TEXT(F15,\".00\"),2)*1=0,IF(ABS(F15)<0.005,\"\",\"整\"),TEXT(IF(ABS(F15)<0.095,\"\",LEFT(RIGHT(TEXT(F15,\".00\"),2))),\"[dbnum2]\")&IF(LEFT(RIGHT(TEXT(F15,\".00\"),2))*1=0,\"\",\"角\")&IF(RIGHT(TEXT(F15,\".00\"))*1=0,\"整\",TEXT(RIGHT(TEXT(F15,\".00\")),\"[dbnum2]\")&\"分\"))))","v":"壹拾万元整"},null,null,100000]
["备注","1、供应商报价前需与校方负责人联系并到学校给领导看样品确认完后再进行报价，报价的时候需要上传报价清单，若未上传清单视为无效报价，按照盲目报价处理。必须按附件里的清单要求供货（来学校领取纳米智慧黑板的参数。联系电话：19890182367），报价确认后必须一天内到校签订合同。 2、中标商中标后严格按照备注里需要安装的要求安装并调试，保证所卖设备。 3、必须在合同签订后的15天之内完成任务，申请校方验收。 4、如盲目报价，中标后无法满足我单位要求，无法按时完成，视为扰乱我单位工作秩序和政采云公平询价环境，我单位将恶意竞标供应商上报叶城县财政局处理，报价商报价必须与公司经营范围相关项目进行报价，与经营范围无关的拒绝成交。 5、中标企业把教学设备负责安装到位，确保正常使用，售后服务必须1个小时之内响应，签合同日起一年保质(合同签订日期起免费维修，维护一年)。"]